bitfinex/quotes_SOLUSD_20260304
["timestamp","ask_amount","ask_price","bid_price","bid_amount"]
[1772637681745,4.10384607,91.751,91.664,4.07301522]
[1772637681931,9.33489043,91.75,91.677,0.28432314]
[1772637682136,9.33489043,91.75,91.688,4.07301522]
[1772637682436,4.10384607,91.759,91.688,4.07301522]
[1772637682636,13.4387365,91.73,91.651,4.07301522]
[1772637682844,9.33489043,91.71,91.654,4.07301522]
[1772637683240,4.10384607,91.719,91.654,4.07301522]
[1772637683440,9.33489043,91.71,91.654,4.07301522]
[1772637683642,9.33489043,91.7,91.651,10.91095569]
[1772637683850,0.28432314,91.735,91.652,4.11407103]
[1772637683851,9.33489043,91.71,91.652,4.11407103]
[1772637684148,9.33489043,91.72,91.652,4.11407103]
[1772637684443,9.33489043,91.71,91.652,4.11407103]
[1772637684625,10.90298523,91.718,91.653,38.18751158]
[1772637684822,10.90298523,91.718,91.654,4.11407103]
[1772637685125,10.90167776,91.729,91.658,4.11407103]
[1772637685325,4.24594188,91.746,91.668,4.11407103]
[1772637685537,10.89882619,91.753,91.676,4.11407103]
[1772637685724,10.89882619,91.753,91.653,180.02684034]
[1772637685725,9.33489043,91.77,91.698,4.11407103]
[1772637686143,4.24594188,91.759,91.698,4.11407103]
[1772637686745,10.89692597,91.769,91.7,4.11407103]
[1772637687065,38.13924091,91.769,91.7,4.11407103]
[1772637687241,38.13924091,91.769,91.701,0.28432314]
[1772637687437,38.13924091,91.769,91.699,38.16835515]
[1772637687438,4.24594188,91.768,91.708,4.11407103]
[1772637687647,4.24594188,91.768,91.657,43.64076045]
[1772637687648,4.24594188,91.739,91.695,4.11407103]
[1772637687841,4.24594188,91.739,91.637,43.65002921]
[1772637687842,4.24594188,91.739,91.681,4.11407103]
[1772637688041,9.33489043,91.73,91.681,4.11407103]
[1772637688343,9.33489043,91.72,91.654,4.11407103]
[1772637688543,4.24594188,91.709,91.654,4.11407103]
[1772637688737,10.90417411,91.708,91.656,4.11407103]
[1772637689752,4.24594188,91.723,91.658,4.11407103]
[1772637689753,10.90245591,91.723,91.658,4.11407103]
[1772637689951,9.33489043,91.72,91.658,4.11407103]
[1772637690646,9.33489043,91.71,91.658,4.11407103]
[1772637690853,13.58083231,91.7,91.659,10.91000338]
[1772637691746,9.33489043,91.7,91.659,10.91000338]
[1772637691949,9.33489043,91.73,91.66,4.11407103]
[1772637692136,9.33489043,91.73,91.663,0.28432314]
[1772637692453,9.33489043,91.73,91.65,0.2]
[1772637692454,4.24594188,91.699,91.653,15.02470865]
[1772637692834,10.90536325,91.698,91.654,4.11407103]
[1772637693058,10.90429302,91.707,91.654,4.11407103]
[1772637693654,9.33489043,91.7,91.654,4.11407103]
[1772637693955,13.58083231,91.7,91.654,4.11407103]
[1772637694137,9.33489043,91.7,91.654,4.11407103]
[1772637694337,10.90429302,91.707,91.654,4.11407103]
[1772637694739,10.90524433,91.699,91.655,10.91047951]
[1772637694939,13.53837289,91.67,91.65,0.15754058]
[1772637695151,9.33489043,91.66,91.65,0.15754058]
[1772637695343,9.33489043,91.66,91.65,0.11550575]
[1772637695549,9.33489043,91.66,91.65,0.07389127]
[1772637695856,9.33489043,91.66,91.589,4.11407103]
[1772637696247,9.33489043,91.67,91.589,4.11407103]
[1772637696757,10.90881323,91.669,91.595,4.11407103]
[1772637696949,38.1808463,91.669,91.595,4.11407103]
[1772637697138,38.1808463,91.669,91.597,4.11407103]
[1772637697340,4.00548246,91.668,91.597,4.11407103]
[1772637697538,9.33489043,91.66,91.597,4.11407103]
[1772637697744,4.00548246,91.659,91.597,4.11407103]
[1772637698042,9.33489043,91.65,91.597,4.11407103]
[1772637698458,13.34037289,91.64,91.597,4.11407103]
[1772637698757,13.34037289,91.64,91.598,10.91726893]
[1772637698758,10.91238446,91.639,91.598,10.91726893]
[1772637699063,4.00548246,91.629,91.58,4.11407103]
[1772637699252,4.00548246,91.629,91.588,10.91846093]
[1772637699855,4.00548246,91.629,91.58,4.11407103]
[1772637700057,4.00548246,91.629,91.545,87.3878921]
[1772637700058,10.91238446,91.639,91.589,4.11407103]
[1772637700364,42.19882808,91.639,91.589,4.11407103]
[1772637700861,42.19882808,91.639,91.59,10.91822251]
[1772637701241,9.33489043,91.63,91.59,10.91822251]
[1772637701638,4.00548246,91.638,91.59,10.91822251]
[1772637701839,4.00548246,91.667,91.591,4.11407103]
[1772637702083,9.33489043,91.66,91.591,4.11407103]
[1772637702743,9.05211526,91.745,91.59,38.21377879]
[1772637702744,9.33489043,91.67,91.597,4.11407103]
[1772637702953,10.90881323,91.669,91.599,4.11407103]
[1772637703151,10.90881323,91.669,91.607,4.11407103]
[1772637703742,4.00548246,91.668,91.607,4.11407103]
[1772637704155,9.33489043,91.66,91.607,4.11407103]
[1772637704441,4.00548246,91.668,91.607,4.11407103]
[1772637705042,10.90905123,91.667,91.609,4.11407103]
[1772637705861,9.33489043,91.65,91.609,4.11407103]
[1772637706166,4.00548246,91.649,91.608,10.91607719]
[1772637706340,4.00548246,91.649,91.597,31.40732342]
[1772637706341,4.00548246,91.649,91.601,10.91680616]
[1772637706543,9.33489043,91.64,91.601,10.91680616]
[1772637706750,4.00548246,91.649,91.602,4.11407103]
[1772637707164,10.91082162,91.653,91.604,4.11407103]
[1772637708064,36.60966046,91.66,91.604,4.11407103]
[1772637708065,10.90995284,91.66,91.604,4.11407103]
[1772637708270,10.90881323,91.669,91.604,4.11407103]
[1772637708452,10.90881323,91.669,91.606,4.24263083]
[1772637708656,10.90881323,91.669,91.608,4.24263083]
[1772637708957,9.33489043,91.65,91.608,4.24263083]
[1772637709165,9.33489043,91.65,91.575,43.6796643]
[1772637709166,9.33489043,91.64,91.598,10.91726893]
[1772637709364,4.00548246,91.629,91.589,10.91829488]
[1772637710169,9.33489043,91.61,91.57,4.24263083]
[1772637710363,9.33489043,91.62,91.588,10.91846093]
[1772637710560,4.00548246,91.639,91.589,4.24263083]
[1772637710753,38.18917827,91.649,91.589,4.24263083]
[1772637710950,42.19466073,91.649,91.589,4.24263083]
[1772637711163,42.19466073,91.649,91.566,87.36800161]
[1772637711164,42.19466073,91.649,91.591,4.24263083]
[1772637711359,10.91119379,91.649,91.591,4.24263083]
[1772637711964,38.18917827,91.649,91.591,4.24263083]
[1772637712266,42.19466073,91.649,91.591,4.24263083]
[1772637712467,4.00548246,91.648,91.591,4.24263083]
[1772637712766,9.33489043,91.64,91.591,4.24263083]
[1772637712972,9.33489043,91.62,91.585,10.91874483]
[1772637713147,4.00548246,91.654,91.589,4.24263083]
[1772637713776,9.33489043,91.65,91.589,4.24263083]
[1772637713965,9.33489043,91.66,91.589,4.24263083]
[1772637714163,9.33489043,91.66,91.597,4.24263083]
[1772637714363,10.90917024,91.666,91.597,4.24263083]
[1772637714865,38.18209586,91.666,91.597,4.24263083]
[1772637715067,10.90940827,91.664,91.599,4.24263083]
[1772637715372,9.33489043,91.66,91.599,4.24263083]
[1772637715558,9.33489043,91.65,91.599,4.24263083]
[1772637715875,4.00548246,91.649,91.599,4.24263083]
[1772637716366,13.34037289,91.64,91.599,4.24263083]
[1772637717065,42.19882808,91.639,91.599,4.24263083]
[1772637717268,14.91786692,91.639,91.6,10.91703056]
[1772637717661,9.33489043,91.62,91.587,0.95962309]
[1772637717870,9.33489043,91.61,91.587,0.95962309]
[1772637718052,4.00548246,91.619,91.587,0.95962309]
[1772637718654,9.33489043,91.61,91.587,0.95962309]
[1772637718877,9.33489043,91.61,91.504,43.71349205]
[1772637718878,9.33489043,91.62,91.56,4.24263083]
[1772637719175,3.92577335,91.617,91.562,4.24263083]
[1772637719378,9.33489043,91.59,91.55,4.24263083]
[1772637719551,9.33489043,91.58,91.544,10.92360866]
[1772637719755,3.92577335,91.589,91.545,4.24263083]
[1772637720165,3.92577335,91.599,91.545,4.24263083]
[1772637720857,10.91488572,91.618,91.545,4.24263083]
[1772637721061,10.91488572,91.618,91.547,4.24263083]
[1772637721062,3.92577335,91.617,91.547,4.24263083]
[1772637721257,43.64302948,91.653,91.546,0.28432314]
[1772637721258,54.53930647,91.677,91.552,4.24263083]
[1772637721457,9.33489043,91.67,91.575,0.28432314]
[1772637721660,10.90786129,91.677,91.594,4.24263083]
[1772637721865,9.33489043,91.66,91.598,4.24263083]
[1772637722268,9.33489043,91.65,91.598,4.24263083]
[1772637722487,3.92577335,91.649,91.598,4.24263083]
[1772637722691,3.92577335,91.639,91.567,4.24263083]
[1772637722860,9.33489043,91.63,91.567,4.24263083]
[1772637723171,9.33489043,91.62,91.569,4.24263083]
[1772637723359,3.92577335,91.619,91.569,4.24263083]
[1772637723956,10.91250354,91.638,91.569,4.24263083]
[1772637724383,3.92577335,91.637,91.569,4.24263083]
[1772637725270,3.92577335,91.637,91.568,38.22295998]
[1772637725271,10.91274171,91.636,91.571,4.24263083]
[1772637725664,3.92577335,91.629,91.571,4.24263083]
[1772637725856,3.92577335,91.629,91.558,27.30480113]
[1772637725857,3.92577335,91.609,91.522,4.24263083]
[1772637726064,9.33489043,91.62,91.522,4.24263083]
[1772637726263,3.92577335,91.623,91.525,4.52695397]
[1772637726571,3.92577335,91.623,91.525,4.3847924]
[1772637726763,13.26066378,91.62,91.536,0.28432314]
[1772637726965,13.26066378,91.62,91.537,4.24263083]
[1772637727169,3.92577335,91.618,91.539,4.52695397]
[1772637727365,10.91476658,91.619,91.539,4.52695397]
[1772637727567,9.33489043,91.65,91.563,4.24263083]
[1772637727772,3.92577335,91.639,91.567,4.24263083]
[1772637728116,3.92577335,91.629,91.567,4.24263083]
[1772637729079,10.9136945,91.628,91.569,4.24263083]
[1772637729273,9.33489043,91.65,91.575,4.24263083]
[1772637729485,9.33489043,91.68,91.584,4.24263083]
[1772637729660,9.33489043,91.68,91.599,0.28432314]
[1772637729984,3.92577335,91.689,91.618,4.24263083]
[1772637730499,3.92577335,91.689,91.62,4.24263083]
[1772637730966,3.92577335,91.679,91.62,4.24263083]
[1772637731164,3.92577335,91.679,91.583,3.69383402]
[1772637731165,13.26066378,91.69,91.622,4.24263083]
[1772637731384,3.92577335,91.679,91.622,4.24263083]
[1772637731690,9.33489043,91.66,91.621,10.91452832]
[1772637732183,3.92577335,91.669,91.621,38.20084914]
[1772637732781,3.92577335,91.669,91.622,4.24263083]
[1772637732973,9.33489043,91.68,91.622,4.24263083]
[1772637733175,9.33489043,91.68,91.624,4.24263083]
[1772637733176,14.83351566,91.678,91.624,4.24263083]
[1772637733492,3.92577335,91.669,91.623,10.91429008]
[1772637733791,3.92577335,91.669,91.623,38.20001528]
[1772637734090,38.17709809,91.678,91.624,4.24263083]
[1772637734289,10.90774231,91.678,91.624,4.24263083]
[1772637734597,3.92577335,91.677,91.624,4.24263083]
[1772637734784,3.92577335,91.669,91.624,4.24263083]
[1772637735093,3.92577335,91.683,91.626,4.24263083]
[1772637735278,10.90709947,91.684,91.626,4.24263083]
[1772637736078,3.92577335,91.683,91.626,4.24263083]
[1772637736381,10.90585944,91.694,91.63,4.24263083]
[1772637737098,10.90585944,91.694,91.631,38.19668015]
[1772637737301,10.90585944,91.694,91.632,4.24263083]
[1772637737595,3.92577335,91.689,91.632,4.24263083]
[1772637737804,9.33489043,91.68,91.632,4.24263083]
[1772637737988,3.92577335,91.679,91.632,4.24263083]
[1772637738190,3.92577335,91.679,91.631,10.91333718]
[1772637738514,9.35029632,91.67,91.618,4.16200283]
[1772637738809,3.92577335,91.659,91.612,4.16200283]
[1772637738981,3.92577335,91.673,91.612,4.16200283]
[1772637739185,10.90845623,91.672,91.614,4.16200283]
[1772637739377,9.35029632,91.67,91.614,4.16200283]
[1772637739683,3.92577335,91.659,91.613,10.91548142]
[1772637739891,38.17959681,91.672,91.601,4.16200283]
[1772637739892,3.92577335,91.649,91.602,10.9167922]
[1772637740203,3.92577335,91.629,91.575,4.16200283]
[1772637740406,3.92577335,91.619,91.576,42.38154302]
[1772637740979,3.92577335,91.619,91.577,4.16200283]
[1772637741177,10.91488572,91.618,91.578,10.91965319]
[1772637741573,3.92577335,91.619,91.578,38.21878616]
[1772637741805,43.63973363,91.66,91.579,4.16200283]
[1772637741806,10.91434993,91.623,91.579,4.16200283]
[1772637741975,9.35029632,91.61,91.567,4.16200283]
[1772637742179,9.35029632,91.61,91.505,43.71310971]
[1772637742180,3.92577335,91.626,91.536,4.16200283]
[1772637742375,9.35029632,91.66,91.548,4.48017286]
[1772637742699,10.90750436,91.68,91.591,4.48017286]
[1772637742900,27.26234695,91.702,91.611,4.48017286]
[1772637743196,27.26234695,91.702,91.61,0.14216157]
[1772637743197,10.90286636,91.719,91.641,4.48017286]
[1772637743388,9.35029632,91.71,91.641,4.48017286]
[1772637744111,27.25894911,91.713,91.641,4.48017286]
[1772637744415,10.90286636,91.719,91.651,4.48017286]
[1772637744578,10.90286636,91.719,91.661,4.48017286]
[1772637745297,9.35029632,91.71,91.667,4.48017286]
[1772637745688,0.03925773,91.719,91.667,4.48017286]
[1772637745876,9.35029632,91.71,91.655,10.91038304]
[1772637746073,81.76258325,91.729,91.656,4.48017286]
[1772637746074,9.35029632,91.69,91.656,4.48017286]
[1772637746277,3.92577336,91.689,91.65,10.91100991]
[1772637747297,10.90655265,91.688,91.62,0.28432314]
[1772637747498,3.92577336,91.687,91.62,0.28432314]
[1772637747699,9.35029632,91.67,91.616,38.20293397]
[1772637747904,9.35029632,91.66,91.616,38.20293397]
[1772637748106,3.92577336,91.659,91.616,10.91512399]
[1772637748288,9.35029632,91.65,91.616,10.91512399]
[1772637748683,3.92577336,91.659,91.616,10.91512399]
[1772637749205,10.91119379,91.649,91.605,10.91643469]
[1772637749408,3.92577336,91.639,91.595,4.3997437]
[1772637749703,9.35029632,91.66,91.595,4.3997437]
[1772637749889,10.90798027,91.676,91.605,4.3997437]
[1772637750204,10.90798027,91.676,91.615,4.3997437]
[1772637750402,10.90798027,91.676,91.621,4.3997437]
[1772637750610,10.90679056,91.686,91.621,4.3997437]
[1772637750906,10.90679056,91.686,91.631,4.3997437]
[1772637751211,43.61460323,91.713,91.601,3.69383402]
[1772637751212,10.90441192,91.706,91.642,38.19209532]
[1772637751397,43.60267959,91.738,91.642,38.19209532]
[1772637751398,13.06030583,91.735,91.651,4.3997437]
[1772637751583,13.06030583,91.735,91.642,169.13642214]
[1772637751584,9.13453247,91.737,91.671,4.3997437]
[1772637751784,9.35029632,91.76,91.691,4.3997437]
[1772637752109,3.92577336,91.762,91.692,4.3997437]
[1772637752309,14.82364936,91.761,91.692,4.3997437]
[1772637752515,3.92577336,91.759,91.692,4.3997437]
[1772637752931,10.89732741,91.766,91.698,4.3997437]
[1772637753083,10.89732741,91.766,91.7,4.3997437]
[1772637753411,10.89732741,91.766,91.702,4.3997437]
[1772637754107,10.89732741,91.766,91.701,38.1675227]
[1772637754108,3.92577336,91.759,91.71,4.3997437]
[1772637754646,10.89732741,91.766,91.71,4.3997437]
[1772637754807,3.92577336,91.759,91.71,4.3997437]
[1772637754988,3.92577336,91.749,91.702,4.3997437]
[1772637755385,10.89942015,91.748,91.703,10.90476865]
[1772637755613,9.35029632,91.74,91.703,10.90476865]
[1772637755796,14.82519351,91.748,91.703,10.90476865]
[1772637755797,3.92577336,91.747,91.703,10.90476865]
[1772637756003,9.35029632,91.76,91.704,4.3997437]
[1772637756218,10.89740096,91.765,91.704,4.3997437]
[1772637756411,9.35029632,91.75,91.704,4.3997437]
[1772637756718,3.92577336,91.739,91.692,4.3997437]
[1772637757005,3.92577336,91.754,91.694,4.3997437]
[1772637757209,0.9948894,91.77,91.693,38.17085273]
[1772637757210,21.24199649,91.77,91.698,4.3997437]
[1772637757511,21.24199649,91.77,91.71,4.3997437]
[1772637757512,48.48401457,91.77,91.71,4.3997437]
[1772637757708,3.92577336,91.769,91.71,4.3997437]
[1772637758291,9.35029632,91.73,91.687,10.90661801]
[1772637758492,9.35029632,91.72,91.682,4.3997437]
[1772637758693,9.35029632,91.7,91.658,4.3997437]
[1772637759512,10.90417411,91.708,91.66,4.3997437]
[1772637759811,3.92577336,91.699,91.659,10.91000338]
[1772637760214,10.90286636,91.719,91.66,4.3997437]
[1772637760820,3.92577336,91.709,91.66,4.3997437]
[1772637761516,10.90286636,91.719,91.662,4.3997437]
[1772637761517,38.16003226,91.719,91.662,4.3997437]
[1772637761711,10.90286636,91.719,91.662,4.3997437]
[1772637762187,10.89953894,91.747,91.675,0.28432314]
[1772637762393,38.14838631,91.747,91.68,4.3997437]
[1772637762809,9.35029632,91.74,91.68,4.3997437]
[1772637763210,9.35029632,91.72,91.68,4.3997437]
[1772637763597,10.90286636,91.719,91.681,10.90738539]
[1772637763807,3.92577336,91.718,91.668,4.3997437]
[1772637764006,9.35029632,91.71,91.669,10.90881323]
[1772637764221,3.92577336,91.709,91.669,10.90881323]
[1772637764422,9.35029632,91.71,91.67,4.3997437]
[1772637765119,38.16003226,91.719,91.67,4.3997437]
[1772637765120,10.90286636,91.719,91.67,4.3997437]
[1772637765320,3.92577336,91.718,91.67,4.3997437]
[1772637765616,3.92577336,91.716,91.671,10.90857523]
[1772637765821,3.92577336,91.709,91.671,10.90857523]
[1772637766703,3.92577336,91.716,91.671,10.90857523]
[1772637766899,3.92577336,91.716,91.615,1.09152431]
[1772637766900,3.92577336,91.699,91.652,4.3997437]
[1772637767705,3.92577336,91.725,91.654,4.3997437]
[1772637768006,3.92577336,91.725,91.66,4.3997437]
[1772637768210,9.35029632,91.72,91.66,4.3997437]
[1772637768405,3.92577336,91.725,91.66,4.3997437]
[1772637768610,10.90132124,91.732,91.66,4.3997437]
[1772637768822,9.35029632,91.73,91.66,4.3997437]
[1772637769021,10.90132124,91.732,91.66,4.3997437]
[1772637769229,3.92577336,91.729,91.66,4.3997437]
[1772637769426,9.35029632,91.69,91.653,10.91071759]
[1772637769724,9.35029632,91.69,91.643,10.91180678]
[1772637769725,9.35029632,91.68,91.643,10.91180678]
[1772637769913,38.17251796,91.689,91.593,4.4671624]
[1772637769914,13.27606968,91.67,91.593,4.4671624]
[1772637770116,9.35029632,91.66,91.597,4.4671624]
[1772637770317,9.35029632,91.65,91.599,4.4671624]
[1772637770511,9.35029632,91.64,91.599,4.4671624]
[1772637770916,3.92577336,91.649,91.599,4.4671624]
[1772637771619,10.91131284,91.648,91.6,38.20960697]
[1772637771811,10.91131284,91.648,91.601,4.4671624]
[1772637772127,38.18959496,91.648,91.601,4.4671624]
[1772637772716,9.35029632,91.64,91.601,4.4671624]
[1772637772924,3.92577336,91.647,91.601,4.4671624]
[1772637773212,9.35029632,91.64,91.601,4.4671624]
[1772637773422,10.91119379,91.649,91.601,4.4671624]
[1772637773621,38.18542843,91.658,91.601,4.4671624]
[1772637773825,10.90845623,91.672,91.608,0.28432314]
[1772637774024,10.90845623,91.672,91.611,4.4671624]
[1772637774339,10.90783138,91.678,91.614,0.28432314]
[1772637774544,27.26528289,91.692,91.631,4.4671624]
[1772637774837,10.9061958,91.691,91.631,4.4671624]
[1772637775035,3.92577336,91.679,91.631,4.4671624]
[1772637775234,9.35029632,91.67,91.631,4.4671624]
[1772637775540,13.27606968,91.67,91.603,4.75148554]
[1772637775714,10.91000338,91.659,91.605,4.4671624]
[1772637776036,10.90738539,91.681,91.617,4.4671624]
[1772637776216,10.90738539,91.681,91.621,4.4671624]
[1772637776413,10.90738539,91.681,91.604,136.45692326]
[1772637776414,14.82982857,91.709,91.641,4.4671624]
[1772637776618,9.35029632,91.7,91.641,4.4671624]
[1772637778129,10.90524433,91.699,91.643,4.4671624]
[1772637779937,9.35029632,91.72,91.649,4.4671624]
[1772637780144,3.92577336,91.753,91.658,4.75148554]
[1772637780322,3.92577336,91.749,91.677,4.4671624]
[1772637780526,3.92577336,91.719,91.659,4.4671624]
[1772637780731,3.92577336,91.709,91.659,4.4671624]
[1772637781039,3.92577336,91.699,91.659,4.4671624]
[1772637781616,3.92577336,91.709,91.659,4.4671624]
[1772637781821,9.35029632,91.7,91.659,4.4671624]
[1772637782228,14.82994747,91.708,91.66,10.90988435]
[1772637782523,3.92577336,91.699,91.655,10.91036679]
[1772637782724,3.92577336,91.699,91.656,4.4671624]
[1772637782919,10.90417411,91.708,91.656,4.4671624]
[1772637783124,10.90286636,91.719,91.656,4.4671624]
[1772637783637,10.90286636,91.719,91.66,4.4671624]
[1772637783840,10.90108356,91.734,91.66,4.4671624]
[1772637784672,10.90108356,91.734,91.655,81.82848363]
[1772637784673,10.90108356,91.734,91.671,4.4671624]
[1772637784853,9.35029632,91.71,91.671,4.4671624]
[1772637785063,9.35029632,91.71,91.606,43.66497541]
[1772637785064,9.35029632,91.68,91.607,4.4671624]
[1772637785230,9.35029632,91.67,91.607,4.4671624]
[1772637785426,9.35029632,91.65,91.607,4.4671624]
[1772637785847,3.92577336,91.658,91.607,4.4671624]
[1772637786153,9.35029632,91.67,91.607,4.4671624]
[1772637786552,10.90881323,91.669,91.609,4.4671624]
[1772637786726,9.35029632,91.65,91.609,4.4671624]
[1772637786937,9.35029632,91.65,91.608,38.20627018]
[1772637786938,3.92577336,91.649,91.608,10.91607719]
[1772637787449,10.90881323,91.669,91.609,4.4671624]
[1772637787829,3.92577336,91.668,91.609,4.4671624]
[1772637788228,3.92577336,91.659,91.609,4.4671624]
[1772637788431,9.35029632,91.65,91.609,4.4671624]
[1772637788629,3.92577336,91.649,91.609,4.4671624]
[1772637788845,9.35029632,91.64,91.61,10.91583888]
[1772637789050,9.35029632,91.62,91.581,4.4671624]
[1772637789353,9.35029632,91.62,91.582,10.91917625]
[1772637789547,9.35029632,91.64,91.583,4.4671624]
[1772637789750,9.35029632,91.63,91.583,4.4671624]
[1772637790046,9.35029632,91.64,91.583,4.4671624]
[1772637790252,3.92577336,91.647,91.583,4.4671624]
[1772637790549,3.92577336,91.629,91.583,4.4671624]
[1772637790726,10.91238446,91.639,91.585,4.4671624]
[1772637790936,9.35029632,91.66,91.591,4.4671624]
[1772637791349,3.92577336,91.659,91.591,4.4671624]
[1772637791656,9.35029632,91.65,91.591,4.4671624]
[1772637791836,3.92577336,91.661,91.599,4.4671624]
[1772637792026,3.92577336,91.661,91.601,4.4671624]
[1772637792432,13.27606968,91.67,91.601,4.4671624]
[1772637792638,3.92577336,91.669,91.601,4.4671624]
[1772637792842,10.91000338,91.659,91.603,4.4671624]
[1772637793255,10.91000338,91.659,91.611,4.4671624]
[1772637793449,10.90893223,91.668,91.611,4.4671624]
[1772637793944,14.83470559,91.668,91.611,4.4671624]
[1772637794336,3.92577336,91.667,91.611,4.4671624]
[1772637794854,10.90917024,91.666,91.613,4.4671624]
[1772637795234,31.1948976,91.679,91.613,4.4671624]
[1772637795235,10.90774231,91.678,91.613,4.4671624]
[1772637795435,10.90774231,91.678,91.621,4.4671624]
[1772637795935,10.9064337,91.689,91.629,4.4671624]
[1772637796134,10.9064337,91.689,91.631,4.4671624]
[1772637796340,3.92577336,91.688,91.631,4.4671624]
[1772637796637,9.35029632,91.67,91.631,4.4671624]
[1772637796842,13.27606968,91.67,91.631,4.4671624]
[1772637797055,3.92577336,91.67,91.632,10.91321808]
[1772637797361,10.90881323,91.669,91.632,38.1962633]
[1772637797761,10.90881323,91.669,91.632,15.38038048]
[1772637798256,9.35029632,91.64,91.602,4.4671624]
[1772637798457,3.92577336,91.649,91.602,4.4671624]
[1772637799144,3.92577336,91.647,91.603,10.91667303]
[1772637799339,3.92577336,91.629,91.591,10.9181033]
[1772637799551,38.18959496,91.648,91.591,10.9181033]
[1772637799552,9.35600436,91.64,91.592,4.39215352]
[1772637799861,3.92577336,91.639,91.592,4.39215352]
[1772637800365,38.18959496,91.648,91.592,4.39215352]
[1772637800558,10.91131284,91.648,91.592,4.39215352]
[1772637801251,43.62613573,91.689,91.575,87.35948446]
[1772637801252,10.90881323,91.669,91.601,0.14216157]
[1772637801452,10.90808149,91.676,91.61,4.39215352]
[1772637801965,3.92577336,91.659,91.61,4.39215352]
[1772637802750,9.35600436,91.64,91.598,4.39215352]
[1772637802941,3.92577336,91.639,91.598,4.39215352]
[1772637803147,10.91250354,91.638,91.599,10.91714975]
[1772637803570,9.35600436,91.63,91.594,10.91766755]
[1772637804961,3.92577336,91.637,91.594,10.91766755]
[1772637805167,10.91357539,91.629,91.596,10.91750731]
[1772637805678,3.92577336,91.609,91.552,4.19349145]
[1772637805880,9.35600436,91.6,91.552,4.19349145]
[1772637806587,10.91155096,91.646,91.555,4.19349145]
[1772637806876,3.92577336,91.639,91.571,4.19349145]
[1772637807079,3.92577336,91.639,91.574,0.28432314]
[1772637807256,3.92577336,91.639,91.554,3.69383402]
[1772637807257,10.91155096,91.646,91.581,4.19349145]
[1772637807457,3.92577336,91.629,91.581,4.19349145]
[1772637807969,3.92577336,91.641,91.581,4.19349145]
[1772637808162,9.35600436,91.64,91.581,4.19349145]
[1772637808580,3.92577336,91.641,91.581,4.19349145]
[1772637808778,9.35600436,91.64,91.581,4.19349145]
[1772637808981,3.92577336,91.639,91.581,4.19349145]
[1772637809182,10.91250354,91.638,91.583,4.19349145]
[1772637809377,9.35600436,91.63,91.583,4.19349145]
[1772637809586,13.28177772,91.63,91.583,4.19349145]
[1772637809761,3.92577336,91.629,91.583,4.19349145]
[1772637810366,10.91250354,91.638,91.583,4.19349145]
[1772637810870,3.92577336,91.629,91.582,10.91917625]
[1772637811083,3.92577336,91.629,91.583,4.19349145]
[1772637811463,43.62509384,91.691,91.55,0.2]
[1772637811464,3.92577336,91.619,91.571,4.19349145]
[1772637811760,3.92577336,91.609,91.571,4.19349145]
[1772637812363,3.92577336,91.609,91.558,4.19349145]
[1772637812787,3.92577336,91.599,91.551,15.11636503]
[1772637813371,3.92577336,91.597,91.551,15.11636503]
[1772637813593,3.92577336,91.597,91.552,4.19349145]
[1772637814294,9.35600436,91.59,91.552,4.19349145]
[1772637814700,9.35600436,91.58,91.55,0.2]
[1772637814876,9.35600436,91.57,91.55,0.2]
[1772637815073,3.92577336,91.579,91.55,0.2]
[1772637815373,10.91965319,91.578,91.55,0.2]
[1772637815768,38.21878616,91.578,91.55,0.2]
[1772637816666,10.91965319,91.578,91.551,10.92287358]
[1772637817067,10.91847653,91.588,91.552,4.19349145]
[1772637817498,9.35600436,91.57,91.55,0.2]
[1772637817696,3.92577336,91.579,91.55,0.2]
[1772637817896,9.35600436,91.62,91.552,4.19349145]
[1772637818092,14.83958697,91.627,91.559,0.28432314]
[1772637818299,14.83958697,91.627,91.56,4.19349145]
[1772637818470,3.92577336,91.619,91.56,4.19349145]
[1772637819080,3.92577336,91.609,91.56,4.19349145]
[1772637819395,13.28177772,91.6,91.56,15.11526448]
[1772637819702,3.92577336,91.599,91.56,4.19349145]
[1772637819895,3.92577336,91.589,91.55,0.2]
[1772637820100,9.35600436,91.57,91.55,0.2]
[1772637820272,9.35600436,91.58,91.55,0.2]
[1772637820478,3.92577336,91.599,91.551,15.11636503]
[1772637820691,9.35600436,91.59,91.551,15.11636503]
[1772637820874,9.35600436,91.58,91.55,0.2]
[1772637821386,9.35600436,91.57,91.55,0.2]
[1772637821582,9.35600436,91.57,91.467,1.09329047]
[1772637821583,9.35600436,91.56,91.476,4.19349145]
[1772637821976,81.89739892,91.578,91.476,4.19349145]
[1772637821977,9.35600436,91.55,91.476,4.19349145]
[1772637822183,9.35600436,91.54,91.476,4.19349145]
[1772637822379,9.35600436,91.53,91.476,4.19349145]
[1772637822694,9.35600436,91.52,91.476,4.19349145]
[1772637822896,9.35600436,91.51,91.476,4.19349145]
[1772637823092,9.35600436,91.5,91.47,10.93249296]
[1772637823300,9.35600436,91.51,91.47,10.93249296]
[1772637823485,10.92788687,91.509,91.466,4.19349145]
[1772637823682,10.92549902,91.529,91.466,4.19349145]
[1772637823891,9.35600436,91.52,91.466,4.19349145]
[1772637824079,9.35600436,91.51,91.466,4.19349145]
[1772637824279,3.72777336,91.519,91.466,4.19349145]